bitfinex/quotes_BTCUSD_20240803
["timestamp","ask_amount","ask_price","bid_price","bid_amount"]
[1722701048026,0.164026,60966.0,60960.0,0.03287]
[1722701048227,0.00925,60970.0,60962.0,0.03287]
[1722701048368,0.00925,60970.0,60969.0,0.13927]
[1722701048592,0.00925,60970.0,60969.0,0.396987]
[1722701048769,0.00925,60970.0,60969.0,0.725022]
[1722701048996,0.00925,60970.0,60969.0,1.075057]
[1722701049203,0.47251164,60994.0,60985.0,0.03287]
[1722701049414,0.47251164,60993.0,60989.0,0.03287]
[1722701049578,0.47251164,60993.0,60988.0,0.1901]
[1722701049579,0.48175164,60998.0,60994.0,0.03287]
[1722701049781,0.00924,60998.0,60994.0,0.03287]
[1722701050826,0.00924,60998.0,60990.0,0.03804292]
[1722701050827,0.00924,60998.0,60995.0,0.03287]
[1722701051046,0.163945,60996.0,60995.0,0.03287]
[1722701051246,0.163945,60996.0,60990.0,0.03804292]
[1722701051247,0.491875,60991.0,60990.0,0.03804292]
[1722701051471,0.491875,60991.0,60981.0,0.0837]
[1722701051472,0.23621118,60991.0,60981.0,0.0837]
[1722701051684,0.23621118,60991.0,60975.0,0.0837]
[1722701051685,0.163998,60976.0,60975.0,0.0837]
[1722701052326,0.163998,60976.0,60970.0,0.1064]
[1722701052327,0.331,60978.0,60971.0,0.03287]
[1722701052549,0.331,60978.0,60977.0,0.534858]
[1722701052744,0.163983,60982.0,60979.0,0.03287]
[1722701052953,0.15745924,60989.0,60979.0,0.03287]
[1722701053152,0.15745924,60989.0,60981.0,0.03287]
[1722701053368,0.23621118,60989.0,60981.0,0.03287]
[1722701053578,0.40017618,60989.0,60981.0,0.03287]
[1722701053781,1.350424,60990.0,60983.0,0.03287]
[1722701053782,1.0225,60990.0,60983.0,0.03287]
[1722701053980,1.0225,60990.0,60982.0,0.0196865]
[1722701053981,1.0225,60990.0,60987.0,0.03287]
[1722701054188,1.0225,60990.0,60989.0,0.03287]
[1722701054189,0.331,60990.0,60989.0,0.03287]
[1722701054391,0.331,60990.0,60989.0,0.23013]
[1722701054602,0.494961,60990.0,60989.0,0.03287]
[1722701054829,1.150805,60990.0,60989.0,0.03287]
[1722701055084,0.00924,60998.0,60989.0,0.13927]
[1722701055297,0.00924,60998.0,60996.0,0.03287]
[1722701055504,0.00924,60998.0,60989.0,0.15019153]
[1722701055505,0.163961,60990.0,60989.0,0.013]
[1722701055713,1.623405,60990.0,60989.0,0.013]
[1722701055917,0.492109,60962.0,60961.0,0.1064]
[1722701056155,0.492109,60962.0,60953.0,0.1064]
[1722701056156,0.331,60962.0,60953.0,0.1064]
[1722701056387,0.32811,60955.0,60954.0,0.03287]
[1722701056588,0.331,60962.0,60956.0,0.03287]
[1722701056814,0.331,60962.0,60960.0,0.03287]
[1722701057028,1.148273,60961.0,60960.0,0.03287]
[1722701057232,0.820195,60961.0,60960.0,0.03287]
[1722701057443,1.148273,60961.0,60960.0,0.03287]
[1722701057665,1.148273,60961.0,60948.0,0.03287]
[1722701057666,0.164071,60949.0,60948.0,0.03287]
[1722701057874,0.328116,60954.0,60949.0,0.013927]
[1722701058088,0.164067,60951.0,60949.0,0.013927]
[1722701058303,0.48845924,60953.0,60950.0,0.0153197]
[1722701058507,0.331,60953.0,60950.0,0.0481897]
[1722701058743,0.82033,60951.0,60950.0,0.0481897]
[1722701058958,0.97778924,60951.0,60950.0,0.03287]
[1722701059177,0.331,60953.0,60950.0,0.03287]
[1722701059385,0.331,60953.0,60952.0,0.03287]
[1722701059600,0.6915,60965.0,60952.0,0.03287]
[1722701059601,0.6915,60965.0,60960.0,0.03287]
[1722701059803,0.32802,60972.0,60960.0,0.19691]
[1722701059804,0.164012,60972.0,60960.0,0.19691]
[1722701060012,0.1,60973.0,60962.0,0.03287]
[1722701060013,0.164016,60970.0,60962.0,0.03287]
[1722701060240,0.40975194,60975.0,60962.0,0.03287]
[1722701060452,0.40975194,60975.0,60960.0,0.01]
[1722701060453,0.56721118,60975.0,60965.0,0.03287]
[1722701060655,0.492076,60966.0,60965.0,0.03287]
[1722701060856,0.64953524,60966.0,60965.0,0.03287]
[1722701061063,0.15745924,60966.0,60953.0,0.03287]
[1722701061285,0.3,60967.0,60955.0,0.03287]
[1722701061286,0.164045,60959.0,60955.0,0.03287]
[1722701061532,0.164049,60958.0,60955.0,0.03287]
[1722701061771,0.164052,60956.0,60955.0,0.03287]
[1722701061993,0.15745924,60956.0,60944.0,0.1064]
[1722701062218,0.492181,60953.0,60952.0,0.014]
[1722701062421,0.32818,60943.0,60937.0,0.1064]
[1722701062629,0.07875194,60954.0,60934.0,0.0837]
[1722701062630,0.328202,60938.0,60934.0,0.0837]
[1722701062898,0.4096,60947.0,60930.0,0.1064]
[1722701063105,0.17875194,60946.0,60932.0,0.03287]
[1722701063322,0.07875194,60939.0,60932.0,0.03287]
[1722701063529,0.492424,60923.0,60922.0,0.1064]
[1722701063740,0.84895924,60938.0,60908.0,0.48251164]
[1722701063741,0.492415,60924.0,60923.0,0.01064]
[1722701063943,0.492415,60924.0,60916.0,0.0824]
[1722701063944,0.328286,60923.0,60916.0,0.0824]
[1722701064155,0.328295,60921.0,60917.0,0.03287]
[1722701064414,0.492465,60918.0,60917.0,0.03287]
[1722701064694,0.164144,60922.0,60917.0,0.03287]
[1722701064917,0.328264,60927.0,60917.0,0.03287]
[1722701065124,0.328264,60927.0,60914.0,0.099]
[1722701065125,0.331,60928.0,60922.0,0.03287]
[1722701065345,0.07875194,60927.0,60922.0,0.03287]
[1722701065556,0.331,60928.0,60922.0,0.03287]
[1722701065776,0.331,60928.0,60918.0,0.013187]
[1722701065777,0.331,60928.0,60924.0,0.03287]
[1722701066008,0.492409,60925.0,60924.0,0.0374457]
[1722701066258,0.331,60928.0,60918.0,0.013187]
[1722701066259,0.328278,60924.0,60918.0,0.013187]
[1722701066491,0.492489,60915.0,60914.0,0.099]
[1722701066726,0.15745924,60923.0,60922.0,0.001]
[1722701067000,0.64988324,60923.0,60922.0,0.001]
[1722701067251,0.431,60928.0,60920.0,0.01]
[1722701067252,0.331,60928.0,60920.0,0.01]
[1722701067531,0.331,60928.0,60913.0,0.022]
[1722701067532,0.331,60928.0,60919.0,0.109]
[1722701067779,0.331,60928.0,60923.0,0.0824]
[1722701068019,1.019707,60938.0,60932.0,0.328232]
[1722701068020,0.6915,60938.0,60932.0,0.328232]
[1722701068266,0.6915,60938.0,60936.0,0.164104]
[1722701068508,0.331,60943.0,60938.0,0.01]
[1722701068751,0.331,60943.0,60939.0,0.01]
[1722701068998,0.331,60943.0,60938.0,0.1641]
[1722701069285,0.331,60943.0,60939.0,0.0704712]
[1722701069525,0.331,60943.0,60939.0,0.0604712]
[1722701069784,0.331,60943.0,60940.0,0.01]
[1722701070020,0.328114,60955.0,60942.0,0.01]
[1722701070021,0.164056,60955.0,60942.0,0.01]
[1722701070259,0.15745924,60955.0,60943.0,0.0352191]
[1722701070534,0.16405,60957.0,60948.0,0.01]
[1722701070782,0.16405,60957.0,60943.0,0.01]
[1722701070783,0.164062,60953.0,60943.0,0.01]
[1722701071072,0.07875194,60957.0,60937.0,0.0824]
[1722701071073,0.164101,60938.0,60937.0,0.0824]
[1722701071333,0.331,60943.0,60933.0,0.109]
[1722701071627,0.331,60943.0,60934.0,0.02114]
[1722701071628,0.07875194,60941.0,60934.0,0.02114]
[1722701071900,0.164109,60935.0,60934.0,0.02114]
[1722701072411,0.164109,60935.0,60922.0,0.0824]
[1722701072412,0.15745924,60935.0,60922.0,0.0824]
[1722701072652,0.6915,60936.0,60917.0,0.099]
[1722701072653,0.328234,60933.0,60917.0,0.099]
[1722701072889,0.164148,60921.0,60917.0,0.099]
[1722701073256,0.331,60930.0,60918.0,0.019184]
[1722701073262,0.164142,60923.0,60918.0,0.019184]
[1722701073486,0.164144,60922.0,60918.0,0.019184]
[1722701073726,0.659246,60930.0,60919.0,0.0211024]
[1722701073727,0.331,60930.0,60919.0,0.0211024]
[1722701073947,0.331,60930.0,60924.0,0.328276]
[1722701074121,0.328165,60945.0,60929.0,0.0824]
[1722701074323,0.331,60944.0,60931.0,0.328237]
[1722701074527,0.48845924,60944.0,60935.0,0.099]
[1722701075132,0.331,60944.0,60935.0,0.099]
[1722701075553,0.331,60944.0,60935.0,0.263109]
[1722701075756,0.328175,60943.0,60936.0,0.09328481]
[1722701075952,0.331,60944.0,60931.0,0.03287]
[1722701075953,0.07875194,60938.0,60931.0,0.03287]
[1722701076180,0.492351,60932.0,60931.0,0.03287]
[1722701076378,0.820585,60932.0,60931.0,0.03287]
[1722701076554,0.164117,60932.0,60931.0,0.03287]
[1722701076772,0.6915,60940.0,60931.0,0.03287]
[1722701076973,0.6915,60940.0,60937.0,0.03287]
[1722701077175,0.0811,60954.0,60937.0,0.03287]
[1722701077176,0.331,60944.0,60937.0,0.03287]
[1722701077611,0.331,60944.0,60941.0,0.03287]
[1722701077809,0.331,60944.0,60941.0,0.11527]
[1722701078555,0.495085,60944.0,60941.0,0.03287]
[1722701078719,0.495085,60944.0,60943.0,0.03287]
[1722701078720,0.823255,60944.0,60943.0,0.03287]
[1722701078923,0.164111,60934.0,60933.0,0.03287]
[1722701079137,0.328191,60940.0,60933.0,0.03287]
[1722701079308,0.15745924,60943.0,60933.0,0.03287]
[1722701079509,0.1641,60939.0,60933.0,0.03287]
[1722701079709,0.1641,60939.0,60932.0,0.03287]
[1722701079912,0.15745924,60943.0,60934.0,0.03287]
[1722701080112,0.492327,60935.0,60934.0,0.03287]
[1722701080337,1.148763,60935.0,60934.0,0.03287]
[1722701080885,0.15745924,60935.0,60921.0,0.03165628]
[1722701081095,0.15745924,60934.0,60922.0,0.03287]
[1722701081296,0.164134,60926.0,60922.0,0.03287]
[1722701081523,0.164138,60924.0,60923.0,0.03287]
[1722701081946,0.492415,60924.0,60923.0,0.03287]
[1722701082119,0.820692,60924.0,60923.0,0.03287]
[1722701082456,0.492415,60924.0,60923.0,0.03287]
[1722701082659,0.164138,60924.0,60923.0,0.03287]
[1722701082864,0.492415,60924.0,60923.0,0.03287]
[1722701083098,0.820692,60924.0,60923.0,0.03287]
[1722701083520,0.820692,60924.0,60908.0,0.04287]
[1722701083521,0.16415,60920.0,60908.0,0.04287]
[1722701083729,0.328277,60924.0,60907.0,0.02]
[1722701083730,0.328246,60930.0,60918.0,0.197024]
[1722701083951,0.331,60931.0,60928.0,0.328255]
[1722701084187,0.331,60931.0,60924.0,0.07875194]
[1722701084188,0.6915,60941.0,60935.0,0.03287]
[1722701084414,0.331,60948.0,60937.0,0.03287]
[1722701084630,0.331,60948.0,60936.0,0.349795]
[1722701084631,0.495074,60948.0,60939.0,0.03287]
[1722701084828,0.331,60948.0,60939.0,0.03287]
[1722701085042,0.331,60948.0,60941.0,0.03287]
[1722701085483,0.16409,60942.0,60941.0,0.03287]
[1722701085901,0.328156,60947.0,60941.0,0.03287]
[1722701085902,0.164078,60947.0,60941.0,0.03287]
[1722701086113,0.331,60948.0,60942.0,0.328176]
[1722701086312,0.331,60948.0,60947.0,0.03287]
[1722701086522,0.331,60948.0,60947.0,0.0689749]
[1722701086729,0.331,60948.0,60947.0,0.03287]
[1722701086730,0.823222,60948.0,60947.0,0.03287]
[1722701087151,1.30882924,60948.0,60947.0,0.03287]
[1722701087350,1.30882924,60948.0,60934.0,0.03287]
[1722701087351,0.0756,60947.0,60934.0,0.03287]
[1722701087556,0.164101,60938.0,60936.0,0.03287]
[1722701087867,0.15745924,60947.0,60938.0,0.03287]
[1722701088071,0.164088,60943.0,60938.0,0.03287]
[1722701088270,0.328161,60946.0,60938.0,0.03287]
[1722701088473,0.328131,60952.0,60938.0,0.02387]
[1722701088726,0.328141,60950.0,60938.0,0.02387]
[1722701089120,0.328176,60943.0,60938.0,0.02387]
[1722701089318,0.492295,60939.0,60938.0,0.02387]
[1722701089568,0.23621118,60947.0,60938.0,0.02387]
[1722701089771,0.164098,60939.0,60938.0,0.02387]
[1722701089918,0.164098,60939.0,60938.0,0.0388157]
[1722701090173,0.820492,60939.0,60938.0,0.0388157]
[1722701090318,0.820492,60939.0,60938.0,0.03687]
[1722701090319,0.32155724,60939.0,60938.0,0.03687]
[1722701090516,0.97795124,60939.0,60938.0,0.02387]
[1722701090716,0.164098,60939.0,60938.0,0.02387]
[1722701090916,0.164098,60939.0,60938.0,0.03787]
[1722701090917,0.72535424,60939.0,60938.0,0.03787]
[1722701091119,1.05355124,60939.0,60938.0,0.03787]
[1722701091344,0.97795124,60939.0,60938.0,0.03787]
[1722701091797,1.30614824,60939.0,60938.0,0.03787]
[1722701092208,0.97795124,60939.0,60938.0,0.02387]
[1722701092612,1.44261166,60939.0,60938.0,0.03787]
[1722701093034,1.44261166,60939.0,60938.0,0.014]
[1722701093248,1.87080866,60939.0,60938.0,0.014]
[1722701093660,1.54261166,60939.0,60938.0,0.014]
[1722701094261,1.87080866,60939.0,60938.0,0.014]
[1722701094871,1.54261166,60939.0,60938.0,0.014]
[1722701095255,1.21441466,60939.0,60938.0,0.014]
[1722701095856,0.78621766,60939.0,60938.0,0.014]
[1722701096061,0.6915,60941.0,60938.0,0.014]
[1722701096259,0.495075,60948.0,60939.0,0.03287]
[1722701096466,0.495075,60948.0,60938.0,0.1781]
[1722701096467,0.328159,60946.0,60941.0,0.03287]
[1722701096854,0.164088,60943.0,60941.0,0.03287]
[1722701097007,0.328175,60943.0,60941.0,0.03287]
[1722701097189,0.16409,60942.0,60941.0,0.03287]
[1722701097392,0.164098,60939.0,60938.0,0.014]
[1722701097792,0.492295,60939.0,60938.0,0.014]
[1722701098023,0.328168,60945.0,60938.0,0.014]
[1722701098179,0.164094,60941.0,60939.0,0.03287]
[1722701098402,0.331,60948.0,60939.0,0.03287]
[1722701098769,0.164095,60940.0,60939.0,0.03287]
[1722701099086,0.492286,60940.0,60939.0,0.03287]
[1722701099288,0.32818,60943.0,60932.0,0.104]
[1722701099488,0.32818,60943.0,60939.0,0.014]
[1722701099666,0.15745924,60947.0,60939.0,0.014]
[1722701099890,0.00122714,60946.0,60933.0,0.0511246]
[1722701100185,0.00122714,60946.0,60939.0,0.014]
[1722701100384,0.331,60948.0,60934.0,0.01]
[1722701100385,0.331,60948.0,60938.0,0.01]
[1722701100633,0.331,60948.0,60935.0,0.2250231]
[1722701100839,0.331,60948.0,60941.0,0.328185]
[1722701101048,0.331,60948.0,60943.0,0.328175]
[1722701101188,0.331,60948.0,60944.0,0.164083]
[1722701101389,0.331,60948.0,60943.0,0.328172]
[1722701101390,0.331,60948.0,60943.0,0.32817]
[1722701101623,0.31,60973.0,60943.0,0.32817]
[1722701101624,0.05,60970.0,60964.0,0.164029]
[1722701101816,0.05,60970.0,60969.0,0.328035]
[1722701102030,0.05,60970.0,60969.0,0.492052]
[1722701102219,0.05,60970.0,60969.0,0.7094572]
[1722701102431,0.05,60970.0,60969.0,0.2174052]
[1722701102775,0.05,60970.0,60969.0,0.81571124]
[1722701102907,0.05,60970.0,60969.0,1.14374624]
[1722701103104,0.05,60970.0,60969.0,1.15774624]
[1722701103333,0.05,60970.0,60969.0,1.18974624]
[1722701103503,0.05,60970.0,60969.0,1.52678124]
[1722701103705,0.05,60970.0,60969.0,1.68413641]
[1722701103914,0.05,60970.0,60969.0,1.69813641]
[1722701104119,0.05,60970.0,60969.0,1.74718366]
[1722701104488,0.05,60970.0,60969.0,2.19877141]
[1722701104694,0.05,60970.0,60969.0,1.87073641]
[1722701104897,0.02658687,60970.0,60969.0,2.3532587]
[1722701105104,0.02658687,60970.0,60969.0,2.61234194]
[1722701105311,0.02658687,60970.0,60969.0,2.69588495]
[1722701105538,0.02658687,60970.0,60969.0,1.44207194]
[1722701105739,0.02658687,60970.0,60969.0,1.80310694]
[1722701105946,0.02658687,60970.0,60969.0,1.99770694]
[1722701106150,0.02658687,60970.0,60969.0,2.4746071]
[1722701106335,0.02658687,60970.0,60969.0,2.43974194]
[1722701106458,0.02658687,60970.0,60969.0,2.61234194]
[1722701106888,0.00157439,60997.0,60988.0,0.491899]
[1722701107099,0.52675164,60998.0,60988.0,0.491899]
[1722701107100,0.52675164,60998.0,60988.0,0.8968419]
[1722701107324,0.05424,60998.0,60988.0,0.8968419]
[1722701107525,0.05424,60998.0,60988.0,0.5589089]
[1722701107727,0.05424,60998.0,60988.0,1.38223414]
[1722701108182,0.05424,60998.0,60988.0,1.39223414]
[1722701108411,0.05424,60998.0,60988.0,1.40423414]
[1722701108823,0.05424,60998.0,60988.0,1.75516714]
[1722701109138,0.05424,60998.0,60988.0,1.76916714]
[1722701109254,0.05424,60998.0,60988.0,1.87410497]
[1722701109460,0.05424,60998.0,60988.0,2.06558497]
[1722701109661,0.05424,60998.0,60997.0,1.879158]
[1722701109860,0.05424,60998.0,60997.0,2.3012228]
[1722701110085,0.00083,61000.0,60999.0,1.385039]
[1722701110291,0.00924,61031.0,61013.0,0.534577]
[1722701110500,0.00157439,61029.0,61013.0,1.63663224]
[1722701110873,0.00924,61031.0,61030.0,0.52444]
[1722701111079,0.00924,61031.0,61030.0,0.574877]
[1722701111503,0.00924,61031.0,61030.0,1.23624324]
[1722701111717,0.00924,61031.0,61030.0,1.99015024]
[1722701111902,0.00924,61031.0,61030.0,2.47121519]
[1722701112100,0.48176164,61050.0,61040.0,0.01]
[1722701112298,0.48176164,61050.0,61049.0,0.196682]
[1722701112503,0.00925,61050.0,61049.0,0.5439552]
[1722701112710,0.00925,61050.0,61049.0,0.70141444]
[1722701112922,0.00925,61050.0,61049.0,0.87198897]
[1722701113104,0.00925,61050.0,61049.0,1.22821944]
[1722701113302,0.00925,61050.0,61049.0,1.57582444]
[1722701113453,0.47251164,61079.0,61055.0,0.883812]
[1722701113663,0.07875194,61076.0,61055.0,1.16892052]
[1722701113867,0.07875194,61069.0,61055.0,0.1212612]
[1722701114081,0.07875194,61069.0,61049.0,0.0196682]
[1722701114082,0.07875194,61062.0,61049.0,0.0196682]
[1722701114283,0.40628694,61062.0,61049.0,0.163802]
[1722701114525,0.07875194,61055.0,61046.0,0.03288]
[1722701114688,0.07875194,61048.0,61046.0,0.03288]
[1722701114894,0.07875194,61055.0,61041.0,0.0944]
[1722701115143,0.336807,61059.0,61042.0,0.1607352]
[1722701115144,0.00925,61059.0,61042.0,0.1607352]
[1722701115382,0.00925,61059.0,61048.0,0.163804]
[1722701115605,0.00925,61059.0,61049.0,0.0032756]
[1722701115815,0.819002,61050.0,61049.0,0.014]
[1722701115923,1.78916124,61050.0,61049.0,0.014]
[1722701116139,1.78916124,61050.0,61022.0,0.1662]
[1722701116140,0.163846,61033.0,61030.0,0.03288]
[1722701116356,0.327682,61035.0,61030.0,0.03288]
[1722701116357,0.08032633,61032.0,61030.0,0.03288]
[1722701116570,0.327674,61037.0,61015.0,0.01]
[1722701116783,0.15903363,61049.0,61026.0,0.327729]
[1722701116784,0.00157439,61036.0,61026.0,0.327729]
[1722701117006,0.327644,61042.0,61027.0,0.15745924]
[1722701117211,0.00157439,61041.0,61027.0,0.15745924]
[1722701117442,0.00157439,61043.0,61032.0,0.163848]
[1722701117667,0.00157439,61043.0,61028.0,0.04851942]
[1722701117668,0.00157439,61043.0,61038.0,0.32766]
[1722701117873,0.257,61048.0,61039.0,0.163828]
[1722701118079,0.257,61048.0,61038.0,0.15745924]
[1722701118080,0.257,61048.0,61043.0,0.163817]
[1722701118289,0.257,61048.0,61044.0,0.0163817]
[1722701118493,0.257,61048.0,61039.0,0.327658]
[1722701118696,0.401474,61055.0,61041.0,0.03288]
[1722701118697,0.0739,61055.0,61041.0,0.03288]
[1722701118902,0.00925,61059.0,61050.0,0.163799]
[1722701119111,0.00925,61059.0,61050.0,0.1638]
[1722701119356,0.00925,61059.0,61051.0,0.163796]
[1722701119562,0.07875194,61055.0,61052.0,0.0655204]
[1722701119764,0.07875194,61055.0,61049.0,0.15745924]
[1722701119977,0.07875194,61055.0,61050.0,0.014]
[1722701120175,0.07875194,61055.0,61051.0,0.01714592]
[1722701120795,0.07875194,61055.0,61051.0,0.03114592]
[1722701121001,0.07875194,61055.0,61051.0,0.01714592]
[1722701121201,0.07875194,61055.0,61040.0,0.03288]
[1722701121202,0.07375194,61055.0,61040.0,0.03288]
[1722701121402,0.07375194,61055.0,61051.0,0.014]
[1722701121635,0.173026,61059.0,61051.0,0.014]
[1722701121840,0.00925,61059.0,61055.0,0.163786]
[1722701122036,0.00925,61059.0,61055.0,0.55796998]
[1722701122712,0.00925,61059.0,61055.0,0.06661098]
[1722701122922,0.00925,61059.0,61049.0,0.03288]
[1722701123165,1.27e-05,61056.0,61049.0,0.03288]
[1722701123366,1.27e-05,61056.0,61051.0,0.04688]
[1722701123615,0.00925,61059.0,61053.0,0.03288]
[1722701123828,0.00925,61059.0,61057.0,0.03288]
[1722701124027,0.00925,61059.0,61058.0,0.0689258]
[1722701124682,0.00925,61059.0,61058.0,0.2327038]
[1722701124824,0.00925,61059.0,61058.0,0.0689258]
[1722701125025,0.00925,61059.0,61056.0,0.03288]
[1722701125229,0.491343,61057.0,61056.0,0.03288]
[1722701125430,0.913505,61057.0,61056.0,0.03288]
[1722701125654,1.241067,61057.0,61056.0,0.03288]
[1722701126031,0.327595,61051.0,61040.0,0.03288]
[1722701126239,0.24255594,61049.0,61042.0,0.03238]
[1722701126435,0.24255594,61049.0,61043.0,0.15745924]
[1722701126639,0.07875194,61049.0,61044.0,0.06724682]
[1722701126839,0.163793,61053.0,61044.0,0.06724682]
[1722701127038,0.327587,61053.0,61044.0,0.06724682]
[1722701127405,0.163795,61052.0,61044.0,0.06724682]
[1722701127522,0.163792,61053.0,61046.0,0.03188]
[1722701127718,0.163794,61052.0,61046.0,0.03188]
[1722701127981,0.07875194,61055.0,61046.0,0.03188]
[1722701128136,0.07875194,61055.0,61048.0,0.03188]
[1722701128137,0.163801,61050.0,61048.0,0.03188]
[1722701128338,0.163793,61053.0,61048.0,0.03188]
[1722701128539,0.163791,61054.0,61048.0,0.03188]
[1722701128749,0.336803,61059.0,61049.0,0.31913508]
[1722701128750,0.00925,61059.0,61049.0,0.31913508]
[1722701128946,0.00925,61059.0,61058.0,1.005372]
[1722701129146,0.00925,61059.0,61058.0,0.190658]
[1722701129375,0.00925,61059.0,61058.0,0.845772]
[1722701129741,0.00925,61059.0,61058.0,0.34811724]
[1722701129948,0.00925,61059.0,61058.0,0.45002152]
[1722701130216,0.00925,61059.0,61058.0,0.00388]
[1722701130793,0.00925,61059.0,61058.0,0.01788]
[1722701131017,0.00925,61059.0,61058.0,0.014]
[1722701131018,0.500578,61059.0,61058.0,0.014]
[1722701131202,0.491367,61054.0,61053.0,0.03288]
[1722701131522,0.491367,61054.0,61030.0,0.248242]
[1722701131523,0.819012,61049.0,61042.0,0.47251164]
[1722701131871,0.819012,61049.0,61026.0,0.80023664]
[1722701131872,0.0641,61036.0,61026.0,0.47251164]
[1722701132046,0.0946,61035.0,61028.0,0.03288]
[1722701132174,0.0641,61036.0,61028.0,0.03288]
[1722701132380,0.0641,61036.0,61030.0,0.03288]
[1722701132834,0.163851,61031.0,61030.0,0.03288]
[1722701133033,0.07875194,61033.0,61013.0,0.163899]
[1722701133281,0.327725,61027.0,61014.0,0.03288]
[1722701133459,0.327725,61027.0,61013.0,0.15745924]
[1722701133460,0.163876,61022.0,61016.0,0.03288]
[1722701133666,0.327748,61023.0,61016.0,0.03288]
[1722701133875,0.327777,61017.0,61016.0,0.03288]
[1722701134078,0.819442,61017.0,61016.0,0.03288]
[1722701134523,0.819442,61017.0,61011.0,0.03288]
[1722701134524,0.491706,61012.0,61011.0,0.03288]
[1722701134727,0.491706,61012.0,60999.0,0.10491891]
[1722701134728,0.163934,61000.0,60999.0,0.10491891]
[1722701134928,0.163934,61000.0,60999.0,0.1154108]
[1722701134929,0.491802,61000.0,60999.0,0.1154108]
[1722701135138,0.591802,61000.0,60999.0,0.1154108]
[1722701135343,0.0641,61011.0,60999.0,0.1154108]
[1722701135546,0.163934,61000.0,60999.0,0.13779891]
[1722701135752,0.0641,61011.0,61001.0,0.03288]
[1722701136158,0.32,61012.0,61006.0,0.03288]
[1722701136371,0.24266194,61009.0,61008.0,0.03288]
[1722701136572,0.163931,61001.0,61000.0,0.03288]
[1722701136787,0.327836,61006.0,61000.0,0.04715989]
[1722701137014,0.32,61007.0,61001.0,0.007]
[1722701137217,0.32,61007.0,61000.0,0.04715989]
[1722701137428,0.29289,61017.0,61006.0,0.03288]
[1722701137626,0.29289,61017.0,61009.0,0.19679]
[1722701137627,0.129,61017.0,61009.0,0.19679]
[1722701137829,0.129,61017.0,61009.0,0.03288]
[1722701138054,0.129,61017.0,61011.0,0.03288]
[1722701138512,0.129,61017.0,61015.0,0.03288]
[1722701139092,0.129,61017.0,61016.0,0.09048447]
[1722701139545,0.85452424,61017.0,61016.0,0.03288]
[1722701139746,1.67377824,61017.0,61016.0,0.03288]
[1722701139951,1.147408,61007.0,61006.0,0.014]
[1722701140153,0.327831,61007.0,61002.0,0.03288]
[1722701140366,0.327812,61011.0,61007.0,0.03288]
[1722701140572,0.13631632,61010.0,61000.0,0.013]
[1722701140774,0.07875194,61014.0,61008.0,0.00595634]
[1722701140992,0.07875194,61014.0,61002.0,0.03288]
[1722701141196,0.1927,61017.0,61005.0,0.03288]
[1722701141403,0.07875194,61014.0,61007.0,0.03288]
[1722701141605,0.491737,61008.0,61007.0,0.03288]
[1722701141992,0.568137,61008.0,61007.0,0.03288]
[1722701142200,0.568137,61008.0,61001.0,0.01179189]
[1722701142201,0.491778,61003.0,61002.0,0.04688]
[1722701142548,0.81963,61003.0,61002.0,0.04688]
[1722701142744,1.211182,61003.0,61002.0,0.05003908]
[1722701143155,1.14752,61001.0,61000.0,0.03288]
[1722701143380,1.14752,61001.0,60999.0,0.10491891]
[1722701143381,0.163934,61000.0,60999.0,0.10491891]
[1722701143584,1.15588118,61000.0,60999.0,0.10491891]
[1722701143793,1.48374918,61000.0,60999.0,0.1154108]
[1722701143992,1.72008928,61000.0,60999.0,0.10491891]
[1722701144143,1.59374918,61000.0,60999.0,0.10491891]
[1722701144358,2.21806435,61000.0,60999.0,0.10491891]
[1722701144610,2.19806435,61000.0,60999.0,0.10491891]
[1722701144815,1.86019635,61000.0,60999.0,0.10691891]
[1722701145019,2.31806435,61000.0,60999.0,0.10691891]
[1722701145426,1.147821,60985.0,60984.0,0.043033]
[1722701145838,2.41678024,60985.0,60984.0,0.043033]
[1722701146571,2.08883124,60985.0,60984.0,0.043033]
[1722701146799,1.931372,60985.0,60984.0,0.043033]
[1722701147371,1.931372,60985.0,60984.0,0.055033]
[1722701147372,2.41678024,60985.0,60984.0,0.055033]
[1722701147575,2.75472924,60985.0,60984.0,0.030153]
[1722701147863,2.87472924,60985.0,60984.0,0.030153]
[1722701148053,2.74472924,60985.0,60984.0,0.030153]
[1722701148261,2.41678024,60985.0,60984.0,0.030153]
[1722701148471,1.0115,60985.0,60984.0,0.030153]
[1722701148646,1.0115,60985.0,60984.0,0.055033]
[1722701148849,1.503423,60985.0,60984.0,0.055033]
[1722701149057,1.98883124,60985.0,60984.0,0.067033]
[1722701149334,1.98883124,60985.0,60984.0,0.022153]
[1722701149335,1.275474,60985.0,60984.0,0.022153]
[1722701149559,1.603423,60985.0,60984.0,0.022153]
[1722701149792,1.603423,60985.0,60984.0,0.010153]
[1722701150085,2.259321,60985.0,60984.0,0.010153]
[1722701150379,1.0125,60985.0,60984.0,0.057033]
[1722701150629,0.321,60985.0,60984.0,0.057033]
[1722701150933,0.648949,60985.0,60984.0,0.065033]
[1722701151116,0.648949,60985.0,60984.0,0.057033]
[1722701151117,1.468821,60985.0,60984.0,0.057033]
[1722701151349,1.72528024,60985.0,60984.0,0.054033]
[1722701151592,2.05322924,60985.0,60984.0,0.054033]
[1722701151830,1.86538024,60985.0,60984.0,0.010153]
[1722701152081,1.86538024,60985.0,60984.0,0.023153]
[1722701152315,1.86538024,60985.0,60984.0,0.010153]
[1722701152592,1.53743124,60985.0,60984.0,0.024153]
[1722701152839,1.53743124,60985.0,60984.0,0.037153]
[1722701152840,1.86538024,60985.0,60984.0,0.037153]